lending/lending_fUSD_20240710
["ID","MTS","AMOUNT","RATE_DAILY","PERIOD"]
[331637369,1720599039224,-150.0,0.0001304,2]
[331637371,1720599039233,-462.24258694,0.00013128,2]
[331637373,1720599039243,-5000.0,0.00013128,2]
[331637375,1720599039254,-150.0,0.0001337,2]
[331637377,1720599039263,-22629.4028,0.00013415,2]
[331637379,1720599039273,-615.771779,0.00013477,2]
[331637381,1720599039282,-155.0,0.00013574,2]
[331637383,1720599039292,-596.0,0.00013593,2]
[331637385,1720599039305,-500.0,0.00013598,2]
[331637387,1720599039316,-24635.4106,0.00013598,2]
[331637389,1720599039326,-1000.0,0.00013598,2]
[331637391,1720599039335,-175.3525,0.00013598,2]
[331637393,1720599039346,-419.0329,0.00013598,2]
[331637395,1720599039356,-1285.3297,0.00013598,2]
[331637397,1720599039367,-4748.0866,0.00013598,2]
[331637398,1720599039378,-24663.863771,0.000136,2]
[331637401,1720599039389,-615.771779,0.00013646,2]
[331637403,1720599039400,-366.31318326,0.00013653,2]
[331637405,1720599039410,-917.95928394,0.00013653,2]
[331637407,1720599039420,-240.84493979,0.00013688,2]
[331637409,1720599039430,-230.05539213,0.00013698,2]
[331637411,1720599039440,-500.0,0.00013698,2]
[331637412,1720599039449,-768.06,0.00013698,2]
[331637414,1720599039459,-798.28,0.00013698,2]
[331637416,1720599039469,-869.12,0.00013698,2]
[331637419,1720599039478,-922.42,0.00013698,2]
[331637421,1720599039488,-500.0,0.00013698,2]
[331637423,1720599039501,-395.10375028,0.00013698,2]
[331637425,1720599039512,-500.0,0.00013698,2]
[331637427,1720599039522,-500.0,0.00013698,2]
[331637429,1720599039532,-562.96,0.00013698,2]
[331637431,1720599039541,-181.78096028,0.00013698,2]
[331637433,1720599039554,-500.0,0.00013698,2]
[331637435,1720599039564,-500.0,0.00013698,2]
[331637437,1720599039574,-345.26663355,0.00013698,2]
[331637439,1720599039583,-1185.66,0.00013698,2]
[331637441,1720599039592,-500.0,0.00013698,2]
[331637443,1720599039601,-965.26,0.00013698,2]
[331637445,1720599039610,-500.0,0.00013698,2]
[331637447,1720599039620,-500.0,0.00013698,2]
[331637449,1720599039630,-858.77,0.00013698,2]
[331637450,1720599039640,-829.04,0.00013698,2]
[331637452,1720599039650,-2000.0,0.00013698,2]
[331637454,1720599039660,-500.0,0.00013698,2]
[331637456,1720599039670,-200.0,0.00013698,2]
[331637458,1720599039680,-1107.31,0.00013698,2]
[331637461,1720599039691,-540.25,0.00013698,2]
[331637463,1720599039701,-500.0,0.00013698,2]
[331637464,1720599039712,-500.0,0.00013698,2]
[331637466,1720599039723,-500.0,0.00013698,2]
[331637468,1720599039733,-966.7,0.00013698,2]
[331637470,1720599039743,-500.0,0.00013698,2]
[331637472,1720599039753,-685.53,0.00013698,2]
[331637475,1720599039764,-949.59,0.00013698,2]
[331637476,1720599039774,-627.98,0.00013698,2]
[331637479,1720599039784,-921.07,0.00013698,2]
[331637481,1720599039796,-501.9,0.00013698,2]
[331637483,1720599039809,-500.0,0.00013698,2]
[331637485,1720599039819,-500.0,0.00013698,2]
[331637487,1720599039829,-639.47346046,0.00013698,2]
[331637489,1720599039839,-500.0,0.00013698,2]
[331637491,1720599039848,-935.29,0.00013698,2]
[331637493,1720599039857,-500.0,0.00013698,2]
[331637495,1720599039867,-500.0,0.00013698,2]
[331637497,1720599039877,-500.0,0.00013698,2]
[331637499,1720599039886,-500.0,0.00013698,2]
[331637501,1720599039896,-500.0,0.00013698,2]
[331637503,1720599039905,-500.0,0.00013698,2]
[331637505,1720599039914,-521.3,0.00013698,2]
[331637507,1720599039924,-691.09,0.00013698,2]
[331637509,1720599039933,-500.0,0.00013698,2]
[331637511,1720599039944,-500.0,0.00013698,2]
[331637513,1720599039954,-1037.99,0.00013698,2]
[331637515,1720599039963,-500.0,0.00013698,2]
[331637517,1720599039973,-500.0,0.00013698,2]
[331637519,1720599039983,-818.8,0.00013698,2]
[331637521,1720599039992,-500.0,0.00013698,2]
[331637523,1720599040002,-500.0,0.00013698,2]
[331637525,1720599040011,-500.0,0.00013698,2]
[331637527,1720599040020,-500.0,0.00013698,2]
[331637529,1720599040030,-984.8,0.00013698,2]
[331637531,1720599040040,-500.0,0.00013698,2]
[331637533,1720599040052,-500.0,0.00013698,2]
[331637536,1720599040062,-500.0,0.00013698,2]
[331637538,1720599040071,-510.14,0.00013698,2]
[331637540,1720599040080,-543.34,0.00013698,2]
[331637542,1720599040090,-1241.53,0.00013698,2]
[331637544,1720599040099,-500.0,0.00013698,2]
[331637546,1720599040108,-500.0,0.00013698,2]
[331637548,1720599040117,-500.0,0.00013698,2]
[331637550,1720599040126,-381.47168289,0.00013698,2]
[331637552,1720599040136,-412.02407759,0.00013698,2]
[331637554,1720599040146,-500.0,0.00013698,2]
[331637557,1720599040155,-562.08393881,0.00013698,2]
[331637559,1720599040164,-876.93,0.00013698,2]
[331637561,1720599040174,-1253.7,0.00013698,2]
[331637563,1720599040184,-568.22,0.00013698,2]
[331637565,1720599040193,-722.25,0.00013698,2]
[331637566,1720599040202,-500.0,0.00013698,2]
[331637568,1720599040211,-500.0,0.00013698,2]
[331637572,1720599040221,-500.0,0.00013698,2]
[331637576,1720599040231,-500.0,0.00013698,2]
[331637578,1720599040241,-500.0,0.00013698,2]
[331637580,1720599040250,-392.58752812,0.00013698,2]
[331637582,1720599040259,-905.58,0.00013698,2]
[331637584,1720599040268,-876.49,0.00013698,2]
[331637586,1720599040278,-808.15,0.00013698,2]
[331637588,1720599040287,-500.0,0.00013698,2]
[331637590,1720599040296,-500.0,0.00013698,2]
[331637592,1720599040308,-500.0,0.00013698,2]
[331637593,1720599040317,-500.0,0.00013698,2]
[331637596,1720599040327,-500.0,0.00013698,2]
[331637597,1720599040336,-500.0,0.00013698,2]
[331637599,1720599040345,-756.96,0.00013698,2]
[331637601,1720599040355,-1187.48,0.00013698,2]
[331637603,1720599040365,-500.0,0.00013698,2]
[331637605,1720599040375,-500.0,0.00013698,2]
[331637607,1720599040384,-563.72,0.00013698,2]
[331637609,1720599040393,-500.0,0.00013698,2]
[331637611,1720599040403,-506.29,0.00013698,2]
[331637613,1720599040412,-500.0,0.00013698,2]
[331637615,1720599040421,-933.88,0.00013698,2]
[331637617,1720599040430,-500.0,0.00013698,2]
[331637619,1720599040439,-500.0,0.00013698,2]
[331637621,1720599040448,-500.0,0.00013698,2]
[331637623,1720599040458,-500.0,0.00013698,2]
[331637625,1720599040467,-500.0,0.00013698,2]
[331637626,1720599040476,-500.0,0.00013698,2]
[331637627,1720599040486,-500.0,0.00013698,2]
[331637628,1720599040496,-500.0,0.00013698,2]
[331637629,1720599040505,-500.0,0.00013698,2]
[331637630,1720599040515,-500.0,0.00013698,2]
[331637632,1720599040524,-748.65,0.00013698,2]
[331637633,1720599040533,-500.0,0.00013698,2]
[331637635,1720599040542,-1549.4,0.00013698,2]
[331637637,1720599040553,-309.08312744,0.00013698,2]
[331637639,1720599040562,-500.0,0.00013698,2]
[331637641,1720599040571,-500.0,0.00013698,2]
[331637643,1720599040581,-500.0,0.00013698,2]
[331637645,1720599040592,-500.0,0.00013698,2]
[331637647,1720599040600,-500.0,0.00013698,2]
[331637649,1720599040610,-676.75,0.00013698,2]
[331637651,1720599040619,-2500.0,0.00013698,3]
[331637653,1720599040628,-500.0,0.00013698,2]
[331637655,1720599040637,-500.0,0.00013698,2]
[331637657,1720599040646,-500.0,0.00013698,2]
[331637659,1720599040655,-500.0,0.00013698,2]
[331637661,1720599040665,-837.11,0.00013698,2]
[331637663,1720599040674,-500.0,0.00013698,2]
[331637665,1720599040684,-500.0,0.00013698,2]
[331637667,1720599040693,-500.0,0.00013698,2]
[331637669,1720599040702,-665.31,0.00013698,2]
[331637671,1720599040711,-500.0,0.00013698,2]
[331637673,1720599040721,-500.0,0.00013698,2]
[331637675,1720599040731,-500.0,0.00013698,2]
[331637677,1720599040740,-555.21,0.00013698,2]
[331637679,1720599040749,-500.0,0.00013698,2]
[331637681,1720599040759,-1003.06,0.00013698,2]
[331637684,1720599040768,-540.12,0.00013698,2]
[331637686,1720599040778,-391.59920902,0.00013698,2]
[331637687,1720599040787,-626.76,0.00013698,2]
[331637690,1720599040797,-522.85,0.00013698,2]
[331637691,1720599040808,-500.0,0.00013698,2]
[331637693,1720599040817,-291.62081771,0.00013698,2]
[331637696,1720599040827,-578.65,0.00013698,2]
[331637697,1720599040836,-500.0,0.00013698,2]
[331637699,1720599040845,-1672.93,0.00013698,2]
[331637701,1720599040854,-500.0,0.00013698,2]
[331637704,1720599040865,-500.0,0.00013698,2]
[331637705,1720599040874,-885.29,0.00013698,2]
[331637708,1720599040884,-1156.41,0.00013698,2]
[331637710,1720599040893,-500.0,0.00013698,2]
[331637712,1720599040902,-500.0,0.00013698,2]
[331637714,1720599040911,-500.0,0.00013698,2]
[331637717,1720599040921,-500.0,0.00013698,2]
[331637720,1720599040930,-500.0,0.00013698,2]
[331637723,1720599040939,-500.0,0.00013698,2]
[331637726,1720599040948,-500.0,0.00013698,2]
[331637728,1720599040957,-644.61,0.00013698,2]
[331637731,1720599040967,-500.0,0.00013698,2]
[331637733,1720599040977,-500.0,0.00013698,2]
[331637735,1720599040987,-500.0,0.00013698,2]
[331637737,1720599040996,-500.0,0.00013698,2]
[331637739,1720599041005,-1492.93,0.00013698,2]
[331637741,1720599041014,-500.0,0.00013698,2]
[331637743,1720599041023,-779.24,0.00013698,2]
[331637744,1720599041033,-500.0,0.00013698,2]
[331637747,1720599041042,-500.0,0.00013698,2]
[331637749,1720599041052,-500.0,0.00013698,2]
[331637751,1720599041061,-579.08,0.00013698,2]
[331637753,1720599041070,-500.0,0.00013698,2]
[331637755,1720599041080,-500.0,0.00013698,2]
[331637757,1720599041089,-995.91,0.00013698,2]
[331637759,1720599041098,-621.14,0.00013698,2]
[331637761,1720599041108,-500.0,0.00013698,2]
[331637763,1720599041118,-500.0,0.00013698,2]
[331637765,1720599041127,-530.61,0.00013698,2]
[331637767,1720599041137,-500.0,0.00013698,2]
[331637769,1720599041146,-500.0,0.00013698,2]
[331637771,1720599041156,-500.0,0.00013698,2]
[331637773,1720599041165,-500.0,0.00013698,2]
[331637775,1720599041174,-552.21,0.00013698,2]
[331637777,1720599041184,-2000.0,0.00013698,2]
[331637779,1720599041194,-500.0,0.00013698,2]
[331637781,1720599041203,-989.36,0.00013698,2]
[331637783,1720599041212,-856.73,0.00013698,2]
[331637785,1720599041222,-200.0,0.00013698,2]
[331637787,1720599041230,-746.97,0.00013698,2]
[331637788,1720599041239,-525.1,0.00013698,2]
[331637790,1720599041250,-500.0,0.00013698,2]
[331637792,1720599041260,-500.0,0.00013698,2]
[331637795,1720599041269,-1114.99,0.00013698,2]
[331637797,1720599041279,-500.0,0.00013698,2]
[331637799,1720599041288,-1204.3,0.00013698,2]
[331637801,1720599041297,-500.0,0.00013698,2]
[331637803,1720599041309,-500.0,0.00013698,2]
[331637805,1720599041318,-1056.43,0.00013698,2]
[331637807,1720599041328,-500.0,0.00013698,2]
[331637809,1720599041337,-500.0,0.00013698,2]
[331637811,1720599041346,-500.0,0.00013698,2]
[331637813,1720599041355,-500.0,0.00013698,2]
[331637815,1720599041366,-1568.94,0.00013698,2]
[331637817,1720599041375,-614.53,0.00013698,2]
[331637819,1720599041385,-1053.28,0.00013698,2]
[331637821,1720599041394,-935.57,0.00013698,2]
[331637823,1720599041403,-631.47,0.00013698,2]
[331637825,1720599041412,-500.0,0.00013698,2]
[331637827,1720599041421,-555.99,0.00013698,2]
[331637829,1720599041431,-500.0,0.00013698,2]
[331637831,1720599041440,-906.8,0.00013698,2]
[331637833,1720599041450,-957.98,0.00013698,2]
[331637835,1720599041459,-684.18,0.00013698,2]
[331637837,1720599041468,-1348.78,0.00013698,2]
[331637838,1720599041477,-500.0,0.00013698,2]
[331637841,1720599041490,-684.12,0.00013698,2]
[331637843,1720599041500,-500.0,0.00013698,2]
[331637845,1720599041510,-500.0,0.00013698,2]
[331637847,1720599041520,-500.0,0.00013698,2]
[331637849,1720599041530,-950.63,0.00013698,2]
[331637851,1720599041540,-500.0,0.00013698,2]
[331637853,1720599041550,-500.0,0.00013698,2]
[331637855,1720599041560,-821.56,0.00013698,2]
[331637857,1720599041570,-682.88,0.00013698,2]
[331637859,1720599041579,-731.7,0.00013698,2]
[331637861,1720599041589,-500.0,0.00013698,2]
[331637863,1720599041599,-500.0,0.00013698,2]
[331637865,1720599041609,-510.48,0.00013698,2]
[331637867,1720599041619,-528.99,0.00013698,2]
[331637869,1720599041628,-1584.03,0.00013698,2]
[331637871,1720599041638,-805.84,0.00013698,2]
[331637872,1720599041647,-885.9,0.00013698,2]
[331637873,1720599041657,-735.57,0.00013698,2]
[331637874,1720599041666,-500.0,0.00013698,2]
[331637875,1720599041675,-500.0,0.00013698,2]
[331637876,1720599041684,-500.0,0.00013698,2]
[331637877,1720599041694,-500.0,0.00013698,2]
[331637879,1720599041703,-500.0,0.00013698,2]
[331637881,1720599041713,-500.0,0.00013698,2]
[331637883,1720599041723,-500.0,0.00013698,2]
[331637885,1720599041732,-500.0,0.00013698,2]
[331637887,1720599041743,-1067.53,0.00013698,2]
[331637889,1720599041752,-500.0,0.00013698,2]
[331637891,1720599041762,-500.0,0.00013698,2]
[331637893,1720599041772,-1209.03,0.00013698,2]
[331637895,1720599041782,-1237.1,0.00013698,2]
[331637897,1720599041791,-500.0,0.00013698,2]
[331637899,1720599041804,-500.0,0.00013698,2]
[331637902,1720599041813,-500.0,0.00013698,2]
[331637904,1720599041822,-500.0,0.00013698,2]
[331637906,1720599041831,-500.0,0.00013698,2]
[331637908,1720599041840,-858.33,0.00013698,2]
[331637910,1720599041850,-500.0,0.00013698,2]
[331637912,1720599041859,-600.46621823,0.00013698,2]
[331637914,1720599041868,-500.0,0.00013698,2]
[331637916,1720599041877,-500.0,0.00013698,2]
[331637918,1720599041887,-500.0,0.00013698,2]
[331637920,1720599041896,-845.17,0.00013698,2]
[331637922,1720599041906,-522.43,0.00013698,2]
[331637924,1720599041915,-500.0,0.00013698,2]
[331637926,1720599041925,-500.0,0.00013698,2]
[331637928,1720599041934,-1171.79,0.00013698,2]
[331637930,1720599041944,-500.0,0.00013698,2]
[331637932,1720599041954,-500.0,0.00013698,2]
[331637934,1720599041964,-500.0,0.00013698,2]
[331637936,1720599041974,-500.0,0.00013698,2]
[331637978,1720599042350,-500.0,0.00013698,2]
[331637982,1720599042382,-1660.49,0.00013698,2]
[331637984,1720599042392,-647.59,0.00013698,2]
[331637986,1720599042402,-754.51,0.00013698,2]
[331637988,1720599042412,-638.0,0.00013698,2]
[331637990,1720599042421,-500.0,0.00013698,2]
[331637992,1720599042431,-529.05,0.00013698,2]
[331637994,1720599042441,-781.92,0.00013698,2]
[331637996,1720599042451,-676.2,0.00013698,2]
[331637998,1720599042461,-1040.02,0.00013698,2]
[331638000,1720599042471,-500.0,0.00013698,2]
[331638002,1720599042480,-1420.74,0.00013698,2]
[331638004,1720599042490,-1139.0,0.00013698,2]
[331638006,1720599042501,-655.65,0.00013698,2]
[331638008,1720599042512,-500.0,0.00013698,2]
[331638010,1720599042522,-821.91,0.00013698,2]
[331638012,1720599042532,-500.0,0.00013698,2]
[331638014,1720599042542,-500.0,0.00013698,2]
[331638016,1720599042553,-500.0,0.00013698,2]
[331638018,1720599042568,-500.0,0.00013698,2]
[331638021,1720599042578,-500.0,0.00013698,2]
[331638023,1720599042587,-500.0,0.00013698,2]
[331638025,1720599042597,-500.0,0.00013698,2]
[331638026,1720599042607,-500.0,0.00013698,2]
[331638028,1720599042617,-1028.2,0.00013698,2]
[331638031,1720599042626,-1037.5,0.00013698,2]
[331638032,1720599042636,-1095.61,0.00013698,2]
[331638035,1720599042645,-801.41,0.00013698,2]
[331638037,1720599042655,-535.95,0.00013698,2]
[331638039,1720599042666,-500.0,0.00013698,2]
[331638041,1720599042675,-500.0,0.00013698,2]
[331638043,1720599042685,-575.22,0.00013698,2]
[331638045,1720599042695,-2178.76,0.00013698,2]
[331638047,1720599042704,-1088.86,0.00013698,2]
[331638049,1720599042714,-686.94,0.00013698,2]
[331638051,1720599042724,-1716.99,0.00013698,2]
[331638052,1720599042733,-500.0,0.00013698,2]
[331638053,1720599042742,-500.0,0.00013698,2]
[331638054,1720599042751,-500.0,0.00013698,2]
[331638055,1720599042761,-625.68,0.00013698,2]
[331638056,1720599042770,-500.0,0.00013698,2]
[331638057,1720599042779,-1508.13,0.00013698,2]
[331638058,1720599042788,-544.94,0.00013698,2]
[331638061,1720599042798,-1998.12,0.00013698,2]
[331638062,1720599042809,-642.96871017,0.00013698,2]
[331638065,1720599042818,-500.0,0.00013698,2]
[331638067,1720599042828,-1049.35,0.00013698,2]
[331638068,1720599042838,-500.0,0.00013698,2]
[331638071,1720599042848,-500.0,0.00013698,2]
[331638073,1720599042858,-1098.36,0.00013698,2]
[331638075,1720599042868,-500.0,0.00013698,2]
[331638077,1720599042877,-500.0,0.00013698,2]
[331638079,1720599042887,-974.95,0.00013698,2]
[331638081,1720599042897,-500.0,0.00013698,2]
[331638083,1720599042906,-500.0,0.00013698,2]
[331638084,1720599042916,-738.81,0.00013698,2]
[331638086,1720599042927,-574.46,0.00013698,2]
[331638089,1720599042936,-899.97,0.00013698,2]
[331638091,1720599042947,-500.0,0.00013698,2]
[331638093,1720599042956,-500.0,0.00013698,2]
[331638095,1720599042966,-583.89,0.00013698,2]
[331638097,1720599042976,-500.0,0.00013698,2]
[331638099,1720599042985,-500.0,0.00013698,2]
[331638101,1720599042995,-1132.07,0.00013698,2]
[331638103,1720599043005,-941.8,0.00013698,2]
[331638105,1720599043014,-500.0,0.00013698,2]
[331638107,1720599043024,-553.03,0.00013698,2]
[331638109,1720599043033,-500.0,0.00013698,2]
[331638111,1720599043043,-1776.14,0.00013698,2]
[331638113,1720599043055,-604.60869356,0.00013698,2]
[331638115,1720599043065,-500.0,0.00013698,2]
[331638117,1720599043075,-500.0,0.00013698,2]
[331638119,1720599043085,-1213.07,0.00013698,2]
[331638121,1720599043095,-500.0,0.00013698,2]
[331638124,1720599043104,-500.0,0.00013698,2]
[331638127,1720599043114,-500.0,0.00013698,2]
[331638129,1720599043124,-500.0,0.00013698,2]
[331638131,1720599043134,-500.0,0.00013698,2]
[331638133,1720599043143,-500.0,0.00013698,2]
[331638135,1720599043153,-500.0,0.00013698,2]
[331638137,1720599043162,-1369.58,0.00013698,2]
[331638139,1720599043172,-500.0,0.00013698,2]
[331638141,1720599043181,-1119.02,0.00013698,2]
[331638143,1720599043191,-549.54,0.00013698,2]
[331638145,1720599043201,-500.0,0.00013698,2]
[331638147,1720599043211,-885.68,0.00013698,2]
[331638149,1720599043221,-698.22,0.00013698,2]
[331638151,1720599043231,-500.0,0.00013698,2]
[331638153,1720599043241,-639.29,0.00013698,2]
[331638155,1720599043250,-676.16,0.00013698,2]
[331638158,1720599043261,-500.0,0.00013698,2]
[331638160,1720599043270,-500.0,0.00013698,2]
[331638162,1720599043280,-500.0,0.00013698,2]
[331638165,1720599043289,-500.0,0.00013698,2]
[331638168,1720599043299,-500.0,0.00013698,2]
[331638170,1720599043309,-614.26,0.00013698,2]
[331638173,1720599043318,-500.0,0.00013698,2]
[331638175,1720599043327,-2018.22,0.00013698,2]
[331638177,1720599043337,-686.94,0.00013698,2]
[331638179,1720599043346,-1271.45,0.00013698,2]
[331638180,1720599043355,-500.0,0.00013698,2]
[331638182,1720599043367,-782.38,0.00013698,2]
[331638184,1720599043376,-667.64,0.00013698,2]
[331638186,1720599043385,-553.97,0.00013698,2]
[331638188,1720599043395,-500.0,0.00013698,2]
[331638191,1720599043405,-2008.57,0.00013698,2]
[331638192,1720599043414,-500.0,0.00013698,2]
[331638195,1720599043424,-500.0,0.00013698,2]
[331638197,1720599043433,-500.0,0.00013698,2]
[331638199,1720599043442,-500.0,0.00013698,2]
[331638201,1720599043452,-500.0,0.00013698,2]
[331638203,1720599043461,-500.0,0.00013698,2]
[331638205,1720599043471,-500.0,0.00013698,2]
[331638207,1720599043481,-500.0,0.00013698,2]
[331638209,1720599043491,-1267.11,0.00013698,2]
[331638211,1720599043502,-1999.22,0.00013698,2]
[331638213,1720599043512,-500.0,0.00013698,2]
[331638216,1720599043521,-2206.75,0.00013698,2]
[331638219,1720599043531,-500.0,0.00013698,2]
[331638222,1720599043541,-500.0,0.00013698,2]
[331638224,1720599043550,-623.51,0.00013698,2]
[331638226,1720599043561,-500.0,0.00013698,2]
[331638228,1720599043571,-500.0,0.00013698,2]
[331638230,1720599043581,-500.0,0.00013698,2]
[331638232,1720599043591,-500.0,0.00013698,2]
[331638234,1720599043601,-500.0,0.00013698,2]
[331638236,1720599043611,-500.0,0.00013698,2]
[331638238,1720599043621,-1394.16,0.00013698,2]
[331638240,1720599043631,-787.01,0.00013698,2]
[331638242,1720599043641,-904.32,0.00013698,2]
[331638244,1720599043651,-500.0,0.00013698,2]
[331638247,1720599043661,-500.0,0.00013698,2]
[331638249,1720599043671,-500.0,0.00013698,2]
[331638250,1720599043681,-500.0,0.00013698,2]
[331638253,1720599043690,-500.0,0.00013698,2]
[331638254,1720599043700,-690.63,0.00013698,2]
[331638257,1720599043710,-500.0,0.00013698,2]
[331638258,1720599043720,-532.04,0.00013698,2]
[331638260,1720599043729,-725.69,0.00013698,2]
[331638262,1720599043739,-1363.18,0.00013698,2]
[331638263,1720599043748,-500.0,0.00013698,2]
[331638264,1720599043757,-1502.92,0.00013698,2]
[331638265,1720599043767,-500.0,0.00013698,2]
[331638266,1720599043776,-638.46,0.00013698,2]
[331638267,1720599043785,-1075.16,0.00013698,2]
[331638269,1720599043794,-624.13,0.00013698,2]
[331638270,1720599043804,-564.82,0.00013698,2]
[331638273,1720599043819,-500.0,0.00013698,2]
[331638275,1720599043831,-500.0,0.00013698,2]
[331638277,1720599043841,-1414.25,0.00013698,2]
[331638279,1720599043851,-558.91,0.00013698,2]
[331638281,1720599043861,-605.92,0.00013698,2]
[331638283,1720599043871,-1102.44,0.00013698,2]
[331638285,1720599043880,-500.0,0.00013698,2]
[331638287,1720599043890,-500.0,0.00013698,2]
[331638289,1720599043900,-500.0,0.00013698,2]
[331638291,1720599043910,-500.0,0.00013698,2]
[331638293,1720599043920,-500.0,0.00013698,2]
[331638296,1720599043930,-500.0,0.00013698,2]
[331638298,1720599043939,-500.0,0.00013698,2]
[331638300,1720599043952,-536.21,0.00013698,2]
[331638302,1720599043962,-1424.11,0.00013698,2]
[331638304,1720599043972,-500.0,0.00013698,2]
[331638306,1720599043981,-500.0,0.00013698,2]
[331638308,1720599043991,-1542.9,0.00013698,2]
[331638310,1720599044000,-2311.64,0.00013698,2]
[331638311,1720599044009,-675.33,0.00013698,2]
[331638312,1720599044020,-735.88,0.00013698,2]
[331638313,1720599044030,-500.0,0.00013698,2]
[331638314,1720599044040,-500.0,0.00013698,2]
[331638315,1720599044049,-520.9,0.00013698,2]
[331638316,1720599044063,-550.92,0.00013698,2]
[331638317,1720599044072,-735.1,0.00013698,2]
[331638318,1720599044081,-500.0,0.00013698,2]
[331638319,1720599044090,-1344.22,0.00013698,2]
[331638320,1720599044103,-983.61,0.00013698,2]
[331638321,1720599044112,-500.0,0.00013698,2]
[331638322,1720599044122,-1779.81,0.00013698,2]
[331638323,1720599044132,-500.0,0.00013698,2]
[331638324,1720599044142,-500.0,0.00013698,2]
[331638325,1720599044152,-500.0,0.00013698,2]
[331638326,1720599044161,-1360.07,0.00013698,2]
[331638328,1720599044171,-500.0,0.00013698,2]
[331638329,1720599044180,-1604.96,0.00013698,2]
[331638331,1720599044190,-500.0,0.00013698,2]
[331638332,1720599044200,-756.49,0.00013698,2]
[331638333,1720599044209,-500.0,0.00013698,2]
[331638334,1720599044219,-500.0,0.00013698,2]
[331638335,1720599044228,-547.2,0.00013698,2]
[331638336,1720599044238,-500.0,0.00013698,2]
[331638337,1720599044247,-221.81760447,0.00013698,2]
[331638338,1720599044256,-531.78,0.00013698,2]
[331638339,1720599044265,-822.71,0.00013698,2]
[331638340,1720599044274,-500.0,0.00013698,2]
[331638341,1720599044283,-1683.85,0.00013698,2]
[331638342,1720599044292,-524.61,0.00013698,2]
[331638343,1720599044301,-500.0,0.00013698,2]
[331638344,1720599044313,-500.0,0.00013698,2]
[331638345,1720599044322,-500.0,0.00013698,2]
[331638346,1720599044331,-500.0,0.00013698,2]
[331638347,1720599044340,-500.0,0.00013698,2]
[331638348,1720599044349,-500.0,0.00013698,2]
[331638349,1720599044360,-1558.27,0.00013698,2]
[331638350,1720599044370,-500.0,0.00013698,2]
[331638351,1720599044379,-714.25,0.00013698,2]
[331638352,1720599044388,-1066.79,0.00013698,2]
[331638353,1720599044397,-500.0,0.00013698,2]
[331638354,1720599044408,-500.0,0.00013698,2]
[331638355,1720599044417,-1204.92,0.00013698,2]
[331638356,1720599044427,-500.0,0.00013698,2]
[331638357,1720599044436,-500.0,0.00013698,2]
[331638358,1720599044446,-530.19,0.00013698,2]
[331638359,1720599044456,-500.0,0.00013698,2]
[331638360,1720599044465,-2232.76,0.00013698,2]
[331638361,1720599044475,-500.0,0.00013698,2]